fUSD/lending_fUSD_20250610
["ID","MTS","AMOUNT","RATE_DAILY","PERIOD"]
[365246466,1749562249509,-386.28,0.0001841,2]
[365246468,1749562249519,-1335.15,0.0001841,2]
[365246469,1749562249528,-490.0,0.0001841,2]
[365246472,1749562249538,-642.62,0.0001841,2]
[365246474,1749562249547,-490.0,0.0001841,2]
[365246476,1749562249559,-490.0,0.0001841,2]
[365246478,1749562249571,-603.98,0.0001841,2]
[365246480,1749562249580,-490.0,0.0001841,2]
[365246482,1749562249589,-490.0,0.0001841,2]
[365246484,1749562249601,-1008.71,0.0001841,2]
[365246486,1749562249610,-490.0,0.0001841,2]
[365246488,1749562249619,-490.0,0.0001841,2]
[365246490,1749562249628,-576.6,0.0001841,2]
[365246492,1749562249640,-500.0,0.0001842,2]
[365246494,1749562249651,-1168.04461606,0.00018452,2]
[365246496,1749562249661,-851.95286966,0.00018462,2]
[365246498,1749562249670,-152.0,0.00018463,5]
[365246500,1749562249680,-320.1313813,0.00018521,2]
[365246502,1749562249690,-606.9025178,0.00018521,2]
[365246504,1749562249699,-1000.0,0.00018521,2]
[365246506,1749562249708,-1168.04461606,0.00018555,2]
[365246508,1749562249718,-166.65,0.00018557,2]
[365246510,1749562249728,-490.0,0.00018575,2]
[365246513,1749562249738,-490.0,0.00018575,2]
[365246514,1749562249747,-1335.15,0.00018575,2]
[365246516,1749562249757,-490.0,0.00018575,2]
[365246519,1749562249766,-642.62,0.00018575,2]
[365246520,1749562249776,-347.53634277,0.00018575,2]
[365246523,1749562249785,-615.74,0.00018575,2]
[365246525,1749562249795,-603.98,0.00018575,2]
[365246527,1749562249804,-490.0,0.00018575,2]
[365246529,1749562249814,-490.0,0.00018575,2]
[365246531,1749562249824,-1008.71,0.00018575,2]
[365246533,1749562249833,-490.0,0.00018575,2]
[365246535,1749562249843,-490.0,0.00018575,2]
[365246536,1749562249852,-576.6,0.00018575,2]
[365246539,1749562249862,-212.37174837,0.00018614,2]
[365246541,1749562249871,-1168.04461606,0.00018659,2]
[365246543,1749562249880,-1463.09262066,0.00018682,2]
[365246545,1749562249889,-277.78,0.000187,2]
[365246547,1749562249898,-2790.83,0.000187,2]
[365246549,1749562249908,-490.0,0.00018739,2]
[365246551,1749562249917,-490.0,0.00018739,2]
[365246552,1749562249926,-1335.15,0.00018739,2]
[365246555,1749562249935,-490.0,0.00018739,2]
[365246557,1749562249945,-642.62,0.00018739,2]
[365246559,1749562249954,-603.98,0.00018739,2]
[365246561,1749562249963,-490.0,0.00018739,2]
[365246563,1749562249973,-490.0,0.00018739,2]
[365246564,1749562249983,-1008.71,0.00018739,2]
[365246566,1749562249992,-490.0,0.00018739,2]
[365246568,1749562250001,-490.0,0.00018739,2]
[365246571,1749562250011,-576.6,0.00018739,2]
[365246573,1749562250021,-486.74131228,0.00018758,2]
[365246575,1749562250029,-1168.04461606,0.00018762,2]
[365246577,1749562250038,-1275.0,0.00018786,2]
[365246579,1749562250047,-927.0,0.00018786,2]
[365246581,1749562250056,-590.0,0.00018786,2]
[365246583,1749562250066,-2001.0,0.00018786,2]
[365246585,1749562250076,-558.0,0.00018786,2]
[365246586,1749562250085,-1256.0,0.00018786,2]
[365246588,1749562250095,-1159.0,0.00018786,2]
[365246591,1749562250104,-945.0,0.00018786,2]
[365246593,1749562250114,-3330.0,0.00018786,2]
[365246594,1749562250124,-293.911,0.00018786,2]
[365246596,1749562250133,-235.39918944,0.00018786,2]
[365246599,1749562250146,-6828.60081056,0.00018786,2]
[365246601,1749562250155,-152.0,0.00018788,6]
[365246603,1749562250165,-156.587,0.00018826,2]
[365246605,1749562250174,-215.0738,0.00018826,2]
[365246607,1749562250183,-335.0,0.00018826,6]
[365246609,1749562250193,-212.37174837,0.00018829,2]
[365246611,1749562250202,-1168.04461606,0.00018866,2]
[365246613,1749562250210,-851.95286966,0.00018882,2]
[365246614,1749562250219,-1000.0,0.000189,6]
[365246616,1749562250229,-199.42182678,0.00018904,2]
[365246619,1749562250238,-336.33129689,0.00018904,2]
[365247193,1749562257690,150.0,0.0002,30]
[365247194,1749562266337,50000.0,0.00038587,60]
[365247195,1749562270488,50000.0,0.00038587,60]
[365247196,1749562271521,375.0,0.00015206,2]
[365247197,1749562273331,50000.0,0.00038587,60]
[365247198,1749562275719,2277.75142,0.00019,30]
[365247199,1749562279322,50000.0,0.00038587,60]
[365247200,1749562283987,34083.37675327,0.00038587,60]
[365247201,1749562320888,405.0,0.0002465,120]
[365247202,1749562321684,734.0,0.0002465,120]
[365247203,1749562322469,912.0,0.0002465,120]
[365247204,1749562378996,150.0,0.0002,30]
[365247205,1749562379710,439.0,0.0002465,120]
[365247206,1749562380530,922.0,0.0002465,120]
[365247207,1749562400738,1000.0,0.0002465,120]
[365247208,1749562418134,1000.0,0.0002465,120]
[365247209,1749562439455,1151.90597067,0.0002465,120]
[365247210,1749562447880,1000.0,0.0002465,120]
[365247211,1749562459446,788.54155157,0.000246,120]
[365247212,1749562462196,1000.0,0.0002465,120]
[365247214,1749562475354,436.77,0.00013699,2]
[365247215,1749562481635,1000.0,0.0002465,120]
[365247216,1749562498013,1000.0,0.0002465,120]
[365247217,1749562500955,150.0,0.0002,30]
[365247218,1749562510419,853.18129205,0.000246,120]
[365247219,1749562536069,157.07898268,0.0002465,120]
[365247220,1749562546576,1333.0,0.0002405,120]
[365247221,1749562568497,502.96761447,0.0002465,120]
[365247223,1749562622878,150.0,0.0002,30]
[365247224,1749562640405,200.21393833,0.00024,120]
[365247226,1749562681739,689.31,0.00019205,30]
[365247227,1749562744302,150.0,0.0002,30]
[365247228,1749562765633,409.51203388,0.00024657,120]
[365247229,1749562865783,150.0,0.0002,30]
[365247230,1749562877628,200.11204449,0.00024658,120]
[365247231,1749562987384,150.0,0.0002,30]
[365247232,1749563109116,150.0,0.0002,30]
[365247233,1749563128979,860.55,0.00015951,2]
[365247234,1749563230514,150.0,0.0002,30]
[365247235,1749563235398,1403.36,0.00013986,2]
[365247236,1749563264122,150.0,0.00015866,7]
[365247237,1749563292811,1000.0,0.00015861,2]
[365247238,1749563301046,500.0,0.00024658,120]
[365247239,1749563318994,500.0,0.00024658,120]
[365247240,1749563327615,1333.0,0.00024382,120]
[365247241,1749563335066,529.0,0.00024658,120]
[365247242,1749563352087,150.0,0.0002,30]
[365247243,1749563362094,200.0,0.00024658,120]
[365247245,1749563377719,169.09,0.00015866,2]
[365247246,1749563428188,50000.0,0.0002,30]
[365247256,1749563431892,-179.63,0.00016002,2]
[365247257,1749563431901,-240.00577014,0.00016083,2]
[365247258,1749563432061,-9.99422986,0.00016083,2]
[365247259,1749563432071,-500.0,0.00016164,2]
[365247260,1749563432081,-1403.36,0.0001625,2]
[365247261,1749563432091,-424.52,0.00016262,2]
[365247262,1749563432101,-314.0,0.00016278,2]
[365247263,1749563432110,-205.55,0.00016282,2]
[365247264,1749563432120,-1200.0,0.00016324,2]
[365247265,1749563432130,-300.0,0.00016325,2]
[365247266,1749563432139,-9332.57577002,0.00016326,2]
[365247267,1749563432151,-1810.42047718,0.00016326,2]
[365247268,1749563432170,-5451.7130664,0.00016326,2]
[365247269,1749563432182,-487.5,0.00016326,2]
[365247270,1749563432193,-435.9,0.00016326,2]
[365247271,1749563432204,-1095.0,0.00016326,2]
[365247272,1749563432215,-1282.33922951,0.00016326,2]
[365247273,1749563432227,-4004.55145689,0.00016326,2]
[365247274,1749563432238,-3354.40856391,0.000164,5]
[365247275,1749563432247,-190.98758138,0.00016438,2]
[365247276,1749563432256,-490.0,0.00016438,2]
[365247277,1749563432267,-470.0,0.00016438,2]
[365247278,1749563432277,-480.0,0.00016438,2]
[365247279,1749563432287,-470.0,0.00016438,2]
[365247280,1749563432296,-471.34,0.00016438,2]
[365247281,1749563432305,-490.0,0.00016438,2]
[365247282,1749563432315,-490.0,0.00016438,2]
[365247283,1749563432324,-500.0,0.00016438,2]
[365247284,1749563432334,-480.0,0.00016438,2]
[365247285,1749563432343,-490.0,0.00016438,2]
[365247286,1749563432352,-490.0,0.00016438,2]
[365247288,1749563432362,-490.0,0.00016438,2]
[365247289,1749563432371,-430.97195985,0.00016438,2]
[365247290,1749563432380,-490.0,0.00016438,2]
[365247292,1749563432389,-490.0,0.00016438,2]
[365247293,1749563432398,-475.42936116,0.00016438,2]
[365247295,1749563432407,-490.0,0.00016438,2]
[365247296,1749563432417,-160.0,0.00016438,2]
[365247297,1749563432427,-490.0,0.00016438,2]
[365247299,1749563432436,-490.0,0.00016438,2]
[365247300,1749563432445,-480.0,0.00016438,2]
[365247302,1749563432461,-480.0,0.00016438,2]
[365247304,1749563432475,-494.867,0.00016438,2]
[365247305,1749563432484,-593.3,0.00016438,2]
[365247307,1749563432493,-490.0,0.00016438,2]
[365247308,1749563432502,-490.0,0.00016438,2]
[365247310,1749563432511,-544.61852712,0.00016438,2]
[365247311,1749563432520,-490.0,0.00016438,2]
[365247312,1749563432529,-1346.87,0.00016438,2]
[365247314,1749563432538,-490.0,0.00016438,2]
[365247315,1749563432547,-559.90187157,0.00016438,2]
[365247317,1749563432556,-490.0,0.00016438,2]
[365247318,1749563432565,-490.0,0.00016438,2]
[365247319,1749563432575,-490.0,0.00016438,2]
[365247320,1749563432584,-490.0,0.00016438,2]
[365247321,1749563432594,-490.0,0.00016438,2]
[365247322,1749563432603,-490.0,0.00016438,2]
[365247323,1749563432612,-490.0,0.00016438,2]
[365247324,1749563432622,-490.0,0.00016438,2]
[365247325,1749563432631,-490.0,0.00016438,2]
[365247326,1749563432640,-490.0,0.00016438,2]
[365247327,1749563432649,-490.0,0.00016438,2]
[365247328,1749563432658,-490.0,0.00016438,2]
[365247329,1749563432667,-490.0,0.00016438,2]
[365247330,1749563432676,-490.0,0.00016438,2]
[365247331,1749563432685,-490.0,0.00016438,2]
[365247332,1749563432694,-490.0,0.00016438,2]
[365247333,1749563432703,-490.0,0.00016438,2]
[365247334,1749563432714,-490.0,0.00016438,2]
[365247335,1749563432723,-490.0,0.00016438,2]
[365247336,1749563432733,-300.0,0.00016438,2]
[365247337,1749563432741,-490.0,0.00016438,2]
[365247338,1749563432752,-490.0,0.00016438,2]
[365247339,1749563432761,-607.13,0.00016438,2]
[365247340,1749563432771,-490.0,0.00016438,2]
[365247341,1749563432779,-490.0,0.00016438,2]
[365247342,1749563432788,-490.0,0.00016438,2]
[365247343,1749563432798,-490.0,0.00016438,2]
[365247344,1749563432808,-490.0,0.00016438,2]
[365247345,1749563432817,-490.0,0.00016438,2]
[365247346,1749563432826,-490.0,0.00016438,2]
[365247347,1749563432835,-490.0,0.00016438,2]
[365247348,1749563432844,-490.0,0.00016438,2]
[365247349,1749563432854,-490.0,0.00016438,2]
[365247350,1749563432863,-490.0,0.00016438,2]
[365247351,1749563432871,-490.0,0.00016438,2]
[365247352,1749563432881,-490.0,0.00016438,2]
[365247353,1749563432890,-490.0,0.00016438,2]
[365247354,1749563432899,-490.0,0.00016438,2]
[365247355,1749563432909,-490.0,0.00016438,2]
[365247356,1749563432918,-554.45506716,0.00016438,2]
[365247357,1749563432927,-490.0,0.00016438,2]
[365247358,1749563432936,-490.0,0.00016438,2]
[365247359,1749563432946,-490.0,0.00016438,2]
[365247360,1749563432956,-490.0,0.00016438,2]
[365247361,1749563432966,-192.52,0.00016438,2]
[365247362,1749563432977,-490.0,0.00016438,2]
[365247363,1749563432986,-490.0,0.00016438,2]
[365247364,1749563432996,-490.0,0.00016438,2]
[365247365,1749563433005,-270.04656332,0.00016438,2]
[365247366,1749563433016,-490.0,0.00016438,2]
[365247367,1749563433026,-480.0,0.00016438,2]
[365247368,1749563433036,-490.0,0.00016438,2]
[365247369,1749563433046,-370.0,0.00016438,2]
[365247370,1749563433056,-490.0,0.00016438,2]
[365247371,1749563433067,-490.0,0.00016438,2]
[365247372,1749563433077,-490.0,0.00016438,2]
[365247373,1749563433087,-654.31,0.00016438,2]
[365247374,1749563433097,-490.0,0.00016438,2]
[365247375,1749563433107,-490.0,0.00016438,2]
[365247376,1749563433117,-490.0,0.00016438,2]
[365247377,1749563433127,-490.0,0.00016438,2]
[365247378,1749563433137,-480.0,0.00016438,2]
[365247379,1749563433147,-778.24,0.00016438,2]
[365247380,1749563433158,-490.0,0.00016438,2]
[365247381,1749563433168,-490.0,0.00016438,2]
[365247382,1749563433178,-490.0,0.00016438,2]
[365247383,1749563433188,-490.0,0.00016438,2]
[365247384,1749563433198,-490.0,0.00016438,2]
[365247385,1749563433208,-490.0,0.00016438,2]
[365247386,1749563433219,-490.0,0.00016438,2]
[365247387,1749563433232,-490.0,0.00016438,2]
[365247388,1749563433242,-490.0,0.00016438,2]
[365247389,1749563433252,-427.23799234,0.00016438,2]
[365247390,1749563433262,-245.64,0.00016438,2]
[365247391,1749563433273,-480.0,0.00016438,2]
[365247392,1749563433283,-490.0,0.00016438,2]
[365247393,1749563433293,-450.54915676,0.00016438,2]
[365247394,1749563433303,-490.0,0.00016438,2]
[365247395,1749563433313,-490.0,0.00016438,2]
[365247396,1749563433322,-490.0,0.00016438,2]
[365247397,1749563433332,-490.0,0.00016438,2]
[365247398,1749563433341,-490.0,0.00016438,2]
[365247399,1749563433351,-490.0,0.00016438,2]
[365247400,1749563433360,-490.0,0.00016438,2]
[365247401,1749563433369,-490.0,0.00016438,2]
[365247402,1749563433379,-490.0,0.00016438,2]
[365247403,1749563433388,-480.0,0.00016438,2]
[365247404,1749563433398,-572.76654133,0.00016438,2]
[365247405,1749563433408,-2525.9,0.00016438,2]
[365247406,1749563433417,-490.0,0.00016438,2]
[365247407,1749563433426,-490.0,0.00016438,2]
[365247408,1749563433436,-490.0,0.00016438,2]
[365247409,1749563433445,-490.0,0.00016438,2]
[365247410,1749563433455,-484.44059291,0.00016438,2]
[365247411,1749563433464,-490.0,0.00016438,2]
[365247412,1749563433474,-490.0,0.00016438,2]
[365247413,1749563433483,-490.0,0.00016438,2]
[365247414,1749563433493,-514.99425698,0.00016438,2]
[365247415,1749563433502,-490.0,0.00016438,2]
[365247416,1749563433512,-490.0,0.00016438,2]
[365247417,1749563433522,-900.0,0.000165,2]
[365247418,1749563433532,-200.0,0.00016558,2]
[365247419,1749563433542,-200.0,0.000166,2]
[365247420,1749563433552,-500.0,0.00016601,2]
[365247421,1749563433561,-490.0,0.00016602,2]
[365247422,1749563433570,-490.0,0.00016602,2]
[365247423,1749563433579,-490.0,0.00016602,2]
[365247424,1749563433589,-490.0,0.00016602,2]
[365247425,1749563433598,-490.0,0.00016602,2]
[365247426,1749563433607,-490.0,0.00016602,2]
[365247427,1749563433616,-1346.87,0.00016602,2]
[365247428,1749563433625,-490.0,0.00016602,2]
[365247429,1749563433635,-490.0,0.00016602,2]
[365247430,1749563433644,-473.58,0.00016602,2]
[365247431,1749563433653,-490.0,0.00016602,2]
[365247432,1749563433663,-490.0,0.00016602,2]
[365247433,1749563433672,-490.0,0.00016602,2]
[365247434,1749563433681,-490.0,0.00016602,2]
[365247435,1749563433690,-490.0,0.00016602,2]
[365247436,1749563433699,-490.0,0.00016602,2]
[365247437,1749563433709,-490.0,0.00016602,2]
[365247438,1749563433718,-490.0,0.00016602,2]
[365247439,1749563433727,-177.61,0.00016602,2]
[365247440,1749563433736,-607.13,0.00016602,2]
[365247441,1749563433746,-490.0,0.00016602,2]
[365247442,1749563433755,-490.0,0.00016602,2]
[365247443,1749563433767,-490.0,0.00016602,2]
[365247444,1749563433777,-490.0,0.00016602,2]
[365247445,1749563433787,-490.0,0.00016602,2]
[365247446,1749563433797,-490.0,0.00016602,2]
[365247447,1749563433807,-490.0,0.00016602,2]
[365247448,1749563433816,-490.0,0.00016602,2]
[365247449,1749563433826,-490.0,0.00016602,2]
[365247450,1749563433835,-490.0,0.00016602,2]
[365247451,1749563433845,-490.0,0.00016602,2]
[365247452,1749563433855,-490.0,0.00016602,2]
[365247453,1749563433865,-654.31,0.00016602,2]
[365247454,1749563433874,-490.0,0.00016602,2]
[365247455,1749563433884,-490.0,0.00016602,2]
[365247456,1749563433893,-490.0,0.00016602,2]
[365247457,1749563433902,-778.24,0.00016602,2]
[365247458,1749563433912,-490.0,0.00016602,2]
[365247459,1749563433923,-490.0,0.00016602,2]
[365247460,1749563433932,-490.0,0.00016602,2]
[365247461,1749563433942,-599.65,0.00016602,2]
[365247462,1749563433952,-490.0,0.00016602,2]
[365247463,1749563433962,-490.0,0.00016602,2]
[365247464,1749563433977,-490.0,0.00016602,2]
[365247465,1749563433987,-490.0,0.00016602,2]
[365247466,1749563433997,-2525.9,0.00016602,2]
[365247467,1749563434008,-490.0,0.00016602,2]
[365247468,1749563434019,-490.0,0.00016602,2]
[365247469,1749563434029,-490.0,0.00016602,2]
[365247470,1749563434039,-490.0,0.00016602,2]
[365247471,1749563434051,-109.61716268,0.00016602,2]
[365247472,1749563434067,-496.36283732,0.00016602,2]
[365247473,1749563434077,-490.0,0.00016602,2]
[365247474,1749563434087,-74.68100167,0.0001672,2]
[365247475,1749563434099,-239.31899833,0.0001672,2]
[365247476,1749563434109,-1929.14,0.00016759,2]
[365247477,1749563434119,-490.0,0.00016767,2]
[365247478,1749563434129,-490.0,0.00016767,2]
[365247479,1749563434140,-490.0,0.00016767,2]
[365247480,1749563434149,-490.0,0.00016767,2]
[365247481,1749563434159,-158.21,0.00016767,2]
[365247482,1749563434169,-490.0,0.00016767,2]
[365247483,1749563434180,-1346.87,0.00016767,2]
[365247484,1749563434190,-490.0,0.00016767,2]
[365247485,1749563434200,-490.0,0.00016767,2]
[365247486,1749563434210,-490.0,0.00016767,2]
[365247487,1749563434220,-490.0,0.00016767,2]
[365247488,1749563434231,-490.0,0.00016767,2]
[365247489,1749563434241,-490.0,0.00016767,2]
[365247490,1749563434251,-490.0,0.00016767,2]
[365247491,1749563434263,-490.0,0.00016767,2]
[365247492,1749563434273,-490.0,0.00016767,2]
[365247493,1749563434284,-154.41,0.00016767,2]
[365247494,1749563434295,-607.13,0.00016767,2]
[365247495,1749563434305,-490.0,0.00016767,2]
[365247496,1749563434316,-490.0,0.00016767,2]
[365247497,1749563434326,-490.0,0.00016767,2]
[365247498,1749563434336,-490.0,0.00016767,2]
[365247499,1749563434346,-490.0,0.00016767,2]
[365247500,1749563434356,-490.0,0.00016767,2]
[365247501,1749563434367,-490.0,0.00016767,2]
[365247502,1749563434378,-490.0,0.00016767,2]
[365247503,1749563434387,-490.0,0.00016767,2]
[365247504,1749563434397,-440.0,0.00016767,2]
[365247505,1749563434407,-490.0,0.00016767,2]
[365247506,1749563434417,-490.0,0.00016767,2]
[365247507,1749563434426,-388.0333112,0.00016767,2]
[365247534,1749563438216,-611.51856929,0.00016438,2]
[365247536,1749563438226,-1736.59077101,0.00016667,2]
[365247552,1749563438474,-559.36780735,0.00016667,2]
[365247554,1749563438483,-266.2766888,0.00016767,2]
[365247556,1749563438492,-410.9,0.00016767,2]
[365247558,1749563438502,-490.0,0.00016767,2]
[365247560,1749563438511,-490.0,0.00016767,2]
[365247562,1749563438522,-778.24,0.00016767,2]
[365247564,1749563438530,-490.0,0.00016767,2]
[365247566,1749563438539,-490.0,0.00016767,2]
[365247567,1749563438548,-171.11949663,0.00016767,2]
[365247569,1749563438557,-490.0,0.00016767,2]
[365247571,1749563438567,-490.0,0.00016767,2]
[365247573,1749563438576,-490.0,0.00016767,2]
[365247575,1749563438585,-335.27,0.00016767,2]
[365247578,1749563438594,-2525.9,0.00016767,2]
[365247581,1749563438603,-490.0,0.00016767,2]
[365247582,1749563438613,-490.0,0.00016767,2]
[365247585,1749563438624,-490.0,0.00016767,2]
[365247588,1749563438638,-490.0,0.00016767,2]
[365247591,1749563438648,-490.0,0.00016767,2]
[365247593,1749563438657,-150.0,0.00016784,2]
[365247595,1749563438666,-391.77938489,0.000168,2]
[365247597,1749563438677,-108.22061511,0.000168,2]
[365247599,1749563438686,-233.47180927,0.00016802,2]
[365247602,1749563438697,-250.0,0.00016813,2]
[365247603,1749563438708,-160.76,0.00016824,2]
[365247606,1749563438719,-500.0,0.00016857,2]
[365247609,1749563438729,-490.0,0.00016931,2]
[365247612,1749563438738,-490.0,0.00016931,2]
[365247615,1749563438747,-490.0,0.00016931,2]
[365247618,1749563438755,-490.0,0.00016931,2]
[365247620,1749563438764,-1346.87,0.00016931,2]
[365247622,1749563438775,-490.0,0.00016931,2]
[365247623,1749563438785,-490.0,0.00016931,2]
[365247625,1749563438794,-6.23079991,0.00016931,2]
[365247740,1749563440220,-490.0,0.00016438,2]
[365247742,1749563440230,-490.0,0.00016602,2]
[365247744,1749563440239,-399.66,0.00016767,2]
[365247746,1749563440249,-483.76920009,0.00016931,2]
[365247748,1749563440258,-490.0,0.00016931,2]
[365247750,1749563440270,-490.0,0.00016931,2]
[365247752,1749563440279,-490.0,0.00016931,2]
[365247753,1749563440290,-490.0,0.00016931,2]
[365247755,1749563440300,-490.0,0.00016931,2]
[365247757,1749563440309,-490.0,0.00016931,2]
[365247759,1749563440319,-607.13,0.00016931,2]
[365247761,1749563440329,-490.0,0.00016931,2]
[365247763,1749563440338,-490.0,0.00016931,2]
[365247765,1749563440348,-490.0,0.00016931,2]
[365247767,1749563440357,-490.0,0.00016931,2]
[365247769,1749563440367,-490.0,0.00016931,2]
[365247771,1749563440376,-209.14,0.00016931,2]
[365247773,1749563440386,-490.0,0.00016931,2]
[365247775,1749563440395,-490.0,0.00016931,2]
[365247777,1749563440404,-490.0,0.00016931,2]
[365247779,1749563440413,-490.0,0.00016931,2]
[365247781,1749563440422,-654.31,0.00016931,2]
[365247783,1749563440431,-490.0,0.00016931,2]
[365247785,1749563440441,-490.0,0.00016931,2]
[365247787,1749563440450,-778.24,0.00016931,2]
[365247789,1749563440459,-277.22,0.00016931,2]
[365247791,1749563440469,-474.13,0.00016931,2]
[365247793,1749563440479,-490.0,0.00016931,2]
[365247795,1749563440488,-490.0,0.00016931,2]
[365247797,1749563440497,-490.0,0.00016931,2]
[365247798,1749563440506,-2525.9,0.00016931,2]
[365247800,1749563440515,-490.0,0.00016931,2]
[365247802,1749563440528,-490.0,0.00016931,2]
[365247804,1749563440537,-490.0,0.00016931,2]
[365247806,1749563440547,-490.0,0.00016931,2]
[365247808,1749563440556,-490.0,0.00017095,2]
[365247810,1749563440565,-490.0,0.00017095,2]
[365247812,1749563440575,-490.0,0.00017095,2]
[365247814,1749563440584,-490.0,0.00017095,2]
[365247816,1749563440594,-490.0,0.00017095,2]
[365247818,1749563440603,-490.0,0.00017095,2]
[365247820,1749563440612,-490.0,0.00017095,2]
[365247822,1749563440621,-583.25,0.00017095,2]
[365247824,1749563440631,-490.0,0.00017095,2]
[365247826,1749563440640,-490.0,0.00017095,2]
[365247828,1749563440650,-490.0,0.00017095,2]
[365247830,1749563440659,-607.13,0.00017095,2]
[365247832,1749563440669,-245.58,0.00017095,2]
[365247834,1749563440679,-392.22,0.00017095,2]
[365247836,1749563440688,-490.0,0.00017095,2]
[365247838,1749563440697,-490.0,0.00017095,2]
[365247840,1749563440707,-490.0,0.00017095,2]
[365247842,1749563440717,-490.0,0.00017095,2]
[365247844,1749563440727,-490.0,0.00017095,2]
[365247846,1749563440736,-490.0,0.00017095,2]
[365247848,1749563440745,-654.31,0.00017095,2]
[365247850,1749563440754,-490.0,0.00017095,2]
[365247852,1749563440764,-490.0,0.00017095,2]
[365247854,1749563440778,-778.24,0.00017095,2]
[365247856,1749563440788,-490.0,0.00017095,2]
[365247858,1749563440797,-490.0,0.00017095,2]
[365247860,1749563440806,-2525.9,0.00017095,2]
[365247862,1749563440816,-490.0,0.00017095,2]
[365247864,1749563440825,-490.0,0.00017095,2]
[365247866,1749563440835,-490.0,0.00017095,2]
[365247868,1749563440844,-490.0,0.00017095,2]
[365247870,1749563440853,-314.0,0.00017162,3]
[365247872,1749563440863,-557.75,0.0001726,2]
[365247874,1749563440872,-490.0,0.0001726,2]
[365247876,1749563440882,-477.70239218,0.0001726,2]
[365247878,1749563440891,-490.0,0.0001726,2]
[365247880,1749563440901,-490.0,0.0001726,2]
[365247882,1749563440911,-607.13,0.0001726,2]
[365247884,1749563440920,-370.0,0.0001726,2]
[365247886,1749563440930,-490.0,0.0001726,2]
[365247888,1749563440939,-490.0,0.0001726,2]
[365247890,1749563440948,-490.0,0.0001726,2]
[365247892,1749563440958,-490.0,0.0001726,2]
[365247893,1749563440967,-654.31,0.0001726,2]
[365247894,1749563440981,-169.45,0.0001726,2]
[365247895,1749563440990,-490.0,0.0001726,2]
[365247897,1749563440999,-778.24,0.0001726,2]
[365247899,1749563441009,-490.0,0.0001726,2]
[365247901,1749563441019,-496.7904,0.0001726,2]
[365247903,1749563441028,-2525.9,0.0001726,2]
[365247905,1749563441037,-490.0,0.0001726,2]
[365247907,1749563441047,-490.0,0.0001726,2]
[365247909,1749563441057,-490.0,0.0001726,2]
[365247911,1749563441067,-490.0,0.0001726,2]
[365247913,1749563441076,-503.44884869,0.00017348,2]
[365247915,1749563441085,-1000.0,0.00017405,2]
[365247917,1749563441094,-490.0,0.00017424,2]
[365247918,1749563441104,-490.0,0.00017424,2]
[365247920,1749563441113,-607.13,0.00017424,2]
[365247922,1749563441122,-490.0,0.00017424,2]